[Event "Live Chess"]
[Site "Chess.com"]
[Date "2023.09.16"]
[Round "-"]
[White "generalhuxx99silva"]
[Black "L_lawliet_03"]
[Result "1/2-1/2"]
[WhiteElo "1491"]
[BlackElo "1526"]
[TimeControl "900+5"]
[EndTime "15:46:02 PDT"]
[Termination "Empate por repetição"]

1. c4 {[%clk 0:15:03]} 1... Nf6 {[%clk 0:15:01.5]} 2. Nc3 {[%clk 0:15:05.6]}
2... g6 {[%clk 0:15:01.5]} 3. g3 {[%clk 0:15:06.2]} 3... Bg7 {[%clk 0:15:04.2]}
4. d4 {[%clk 0:14:55.4]} 4... d5 {[%clk 0:15:04.2]} 5. Bg2 {[%clk 0:14:41.1]}
5... dxc4 {[%clk 0:14:55.6]} 6. Nf3 {[%clk 0:14:42]} 6... O-O {[%clk 0:14:45.3]}
7. O-O {[%clk 0:14:44.6]} 7... Be6 {[%clk 0:14:26.1]} 8. Re1 {[%clk 0:14:38.6]}
8... Nc6 {[%clk 0:14:26.9]} 9. Rb1 {[%clk 0:14:05.6]} 9... Nd5 {[%clk
0:13:53.9]} 10. Nxd5 {[%clk 0:13:49.9]} 10... Bxd5 {[%clk 0:13:40.1]} 11. a3
{[%clk 0:13:51.1]} 11... Nxd4 {[%clk 0:12:59]} 12. Nxd4 {[%clk 0:13:48]} 12...
Bxg2 {[%clk 0:12:59.6]} 13. Kxg2 {[%clk 0:13:51.2]} 13... Bxd4 {[%clk 0:12:59]}
14. f3 {[%clk 0:13:43.4]} 14... Bg7 {[%clk 0:12:50.3]} 15. Qc2 {[%clk
0:13:31.2]} 15... b5 {[%clk 0:12:40.1]} 16. Bf4 {[%clk 0:13:27.4]} 16... c6
{[%clk 0:12:37.4]} 17. Red1 {[%clk 0:13:20.5]} 17... Qc8 {[%clk 0:12:20.8]} 18.
e4 {[%clk 0:13:05.9]} 18... e5 {[%clk 0:11:48.1]} 19. Be3 {[%clk 0:12:48.2]}
19... f5 {[%clk 0:11:47.6]} 20. Bc5 {[%clk 0:12:38.5]} 20... Re8 {[%clk
0:11:36]} 21. b3 {[%clk 0:12:27.3]} 21... cxb3 {[%clk 0:11:18.6]} 22. Rxb3
{[%clk 0:12:32.2]} 22... fxe4 {[%clk 0:10:48.6]} 23. fxe4 {[%clk 0:12:31.3]}
23... Bf8 {[%clk 0:09:32.7]} 24. Bxf8 {[%clk 0:11:58.4]} 24... Rxf8 {[%clk
0:09:37.6]} 25. Rd6 {[%clk 0:11:57.5]} 25... Qg4 {[%clk 0:09:22.9]} 26. Rxc6
{[%clk 0:11:08.7]} 26... Rac8 {[%clk 0:09:17.7]} 27. Rxb5 {[%clk 0:11:00.1]}
27... Rxc6 {[%clk 0:08:29.7]} 28. Qxc6 {[%clk 0:11:05]} 28... Qe2+ {[%clk
0:08:29]} 29. Kh3 {[%clk 0:10:49.9]} 29... Qf1+ {[%clk 0:08:27.9]} 30. Kh4
{[%clk 0:10:35.1]} 30... Rf6 {[%clk 0:07:26.3]} 31. Qe8+ {[%clk 0:09:36.4]}
31... Kg7 {[%clk 0:07:22.9]} 32. Rb7+ {[%clk 0:09:22.1]} 32... Kh6 {[%clk
0:07:21.3]} 33. Rxa7 {[%clk 0:09:21.9]} 33... Rf4+ {[%clk 0:05:11.1]} 34. gxf4
{[%clk 0:09:20.3]} 34... Qxf4+ {[%clk 0:05:13.9]} 35. Kh3 {[%clk 0:09:24.4]}
35... Qf3+ {[%clk 0:05:14.7]} 36. Kh4 {[%clk 0:09:24.2]} 36... Qf2+ {[%clk
0:05:18]} 37. Kh3 {[%clk 0:09:23.9]} 37... Qxa7 {[%clk 0:05:20.9]} 38. Qxe5
{[%clk 0:09:20.9]} 38... Qxa3+ {[%clk 0:05:22.9]} 39. Kg4 {[%clk 0:08:57.3]}
39... Qa8 {[%clk 0:04:01]} 40. Qg5+ {[%clk 0:08:27.9]} 40... Kg7 {[%clk
0:04:01.8]} 41. Qe7+ {[%clk 0:08:32.1]} 41... Kg8 {[%clk 0:03:37.8]} 42. Kg5
{[%clk 0:07:48.6]} 42... Qa5+ {[%clk 0:03:37.9]} 43. Kf6 {[%clk 0:07:04.6]}
43... Qc3+ {[%clk 0:03:22.5]} 44. Qe5 {[%clk 0:06:58.6]} 44... Qxe5+ {[%clk
0:03:20.4]} 45. Kxe5 {[%clk 0:07:01.3]} 45... Kf7 {[%clk 0:03:24.2]} 46. Kd6
{[%clk 0:06:50.3]} 46... Ke8 {[%clk 0:03:24.3]} 47. e5 {[%clk 0:06:45.2]} 47...
g5 {[%clk 0:03:23.5]} 48. Ke6 {[%clk 0:06:31]} 48... h5 {[%clk 0:03:25.2]} 49.
Kf6 {[%clk 0:06:31.2]} 49... g4 {[%clk 0:03:22.7]} 50. Kg5 {[%clk 0:06:19.8]}
50... Ke7 {[%clk 0:03:22.2]} 51. Kxh5 {[%clk 0:06:19.9]} 51... Ke6 {[%clk
0:03:26.2]} 52. Kxg4 {[%clk 0:06:18]} 52... Kxe5 {[%clk 0:03:30.2]} 53. h4
{[%clk 0:06:16.3]} 53... Kf6 {[%clk 0:03:34.2]} 54. h5 {[%clk 0:06:16.3]} 54...
Kg7 {[%clk 0:03:38.2]} 55. Kg5 {[%clk 0:06:14.3]} 55... Kg8 {[%clk 0:03:39]} 56.
h6 {[%clk 0:06:12.6]} 56... Kh7 {[%clk 0:03:41.2]} 57. Kh5 {[%clk 0:06:07.8]}
57... Kh8 {[%clk 0:03:44.5]} 58. Kg6 {[%clk 0:06:00.8]} 58... Kg8 {[%clk
0:03:47.8]} 59. Kh5 {[%clk 0:06:00.2]} 59... Kh7 {[%clk 0:03:50.8]} 60. Kg5
{[%clk 0:06:02.5]} 60... Kg8 {[%clk 0:03:49.1]} 61. Kh5 {[%clk 0:06:03.5]} 61...
Kh7 {[%clk 0:03:52.7]} 62. Kg5 {[%clk 0:06:07.8]} 62... Kg8 {[%clk 0:03:56.7]}
63. Kh5 {[%clk 0:06:12]} 1/2-1/2

[Event "Live Chess"]
[Site "Chess.com"]
[Date "2023.09.16"]
[Round "-"]
[White "MatheusMPD"]
[Black "MAndrade_Marques"]
[Result "0-1"]
[WhiteElo "1613"]
[BlackElo "1655"]
[TimeControl "900+5"]
[EndTime "15:47:23 PDT"]
[Termination "MAndrade_Marques venceu por desistência"]

1. d4 {[%clk 0:15:02.6]} 1... Nf6 {[%clk 0:15:03.1]} 2. c4 {[%clk 0:15:06]} 2...
g6 {[%clk 0:15:04.2]} 3. Nc3 {[%clk 0:15:09.7]} 3... d5 {[%clk 0:15:06.8]} 4.
cxd5 {[%clk 0:15:10.9]} 4... Nxd5 {[%clk 0:15:09.5]} 5. Qb3 {[%clk 0:15:13.6]}
5... Nxc3 {[%clk 0:14:58.6]} 6. bxc3 {[%clk 0:15:15.4]} 6... Bg7 {[%clk
0:15:00.2]} 7. Nf3 {[%clk 0:15:16.3]} 7... O-O {[%clk 0:14:58.9]} 8. e3 {[%clk
0:15:18.4]} 8... b6 {[%clk 0:15:00.7]} 9. Be2 {[%clk 0:15:17.3]} 9... Bb7 {[%clk
0:15:03.7]} 10. O-O {[%clk 0:15:17.7]} 10... h6 {[%clk 0:14:55.5]} 11. Re1
{[%clk 0:14:43.6]} 11... Re8 {[%clk 0:14:37.4]} 12. Ba3 {[%clk 0:12:32.3]} 12...
Nd7 {[%clk 0:13:49.3]} 13. Bd3 {[%clk 0:11:22]} 13... c5 {[%clk 0:12:47]} 14.
Bxg6 {[%clk 0:10:26]} 14... e6 {[%clk 0:12:28.2]} 15. Bh5 {[%clk 0:10:20.1]}
15... Bxf3 {[%clk 0:12:29.5]} 16. Bxf3 {[%clk 0:10:23.1]} 16... Rc8 {[%clk
0:12:20.8]} 17. Rac1 {[%clk 0:09:21.6]} 17... c4 {[%clk 0:11:41.5]} 18. Qa4
{[%clk 0:08:35.8]} 18... a5 {[%clk 0:11:21.2]} 19. Be2 {[%clk 0:07:52.7]} 19...
Qc7 {[%clk 0:11:20.2]} 20. Rb1 {[%clk 0:07:36]} 20... Bf6 {[%clk 0:10:32.7]} 21.
Qc2 {[%clk 0:06:54.1]} 21... Rb8 {[%clk 0:09:56.3]} 22. Qe4 {[%clk 0:06:36.2]}
22... b5 {[%clk 0:09:25.8]} 23. Bd1 {[%clk 0:06:18.8]} 23... Bg7 {[%clk
0:09:05.6]} 24. Bc2 {[%clk 0:06:05.1]} 24... f5 {[%clk 0:09:06.8]} 25. Qf3
{[%clk 0:05:50.6]} 25... Nf6 {[%clk 0:09:03.9]} 26. e4 {[%clk 0:05:13.1]} 26...
e5 {[%clk 0:05:43.7]} 27. exf5 {[%clk 0:03:22.1]} 27... exd4 {[%clk 0:05:45.9]}
28. Rxe8+ {[%clk 0:03:00.1]} 28... Nxe8 {[%clk 0:05:41]} 29. cxd4 {[%clk
0:02:17]} 29... b4 {[%clk 0:05:36.3]} 30. Bb2 {[%clk 0:02:16.4]} 30... c3 {[%clk
0:05:32.4]} 31. Bxc3 {[%clk 0:02:16.4]} 31... bxc3 {[%clk 0:05:34.4]} 32. Rxb8
{[%clk 0:02:19.6]} 32... Qxb8 {[%clk 0:05:36.2]} 33. Qd5+ {[%clk 0:02:15.9]}
33... Kh8 {[%clk 0:05:35.2]} 34. Bb3 {[%clk 0:02:18]} 34... Nf6 {[%clk
0:05:32.3]} 35. Qc4 {[%clk 0:02:13.5]} 35... Ng4 {[%clk 0:05:08]} 36. g3 {[%clk
0:01:56.2]} 36... Qd8 {[%clk 0:04:40.2]} 37. h3 {[%clk 0:01:09.9]} 37... Nf6
{[%clk 0:03:47.5]} 38. Qxc3 {[%clk 0:01:13.3]} 38... Ne4 {[%clk 0:03:48.4]} 39.
Qxa5 {[%clk 0:01:02.1]} 39... Qxa5 {[%clk 0:03:46]} 0-1

[Event "Live Chess"]
[Site "Chess.com"]
[Date "2023.09.16"]
[Round "-"]
[White "Orionchess"]
[Black "marqueslua97"]
[Result "0-1"]
[WhiteElo "1789"]
[BlackElo "1887"]
[TimeControl "900+5"]
[EndTime "15:47:40 PDT"]
[Termination "marqueslua97 venceu por desistência"]

1. d4 {[%clk 0:15:01.5]} 1... Nf6 {[%clk 0:15:03]} 2. e3 {[%clk 0:15:05.1]} 2...
g6 {[%clk 0:15:06.9]} 3. Bd3 {[%clk 0:15:08.8]} 3... Bg7 {[%clk 0:15:09.9]} 4.
Nd2 {[%clk 0:15:13.2]} 4... O-O {[%clk 0:15:04.8]} 5. f4 {[%clk 0:15:16.6]} 5...
d6 {[%clk 0:15:05.3]} 6. Ngf3 {[%clk 0:15:19]} 6... Nbd7 {[%clk 0:14:59.2]} 7.
O-O {[%clk 0:15:21.2]} 7... Re8 {[%clk 0:15:02.1]} 8. c3 {[%clk 0:15:21]} 8...
h5 {[%clk 0:14:48]} 9. e4 {[%clk 0:15:21.6]} 9... c5 {[%clk 0:14:28.7]} 10. e5
{[%clk 0:15:21.2]} 10... Ng4 {[%clk 0:13:59]} 11. Ne4 {[%clk 0:15:21]} 11... d5
{[%clk 0:12:54.4]} 12. Neg5 {[%clk 0:15:12.8]} 12... e6 {[%clk 0:12:22.4]} 13.
Bb1 {[%clk 0:14:16.7]} 13... Nf8 {[%clk 0:11:28.9]} 14. Qe2 {[%clk 0:12:15.4]}
14... f6 {[%clk 0:10:32]} 15. Nh3 {[%clk 0:12:07.1]} 15... f5 {[%clk 0:10:14.9]}
16. Nhg5 {[%clk 0:11:57.5]} 16... Nh7 {[%clk 0:10:04.4]} 17. Nh4 {[%clk
0:11:47.8]} 17... Nxg5 {[%clk 0:09:54.1]} 18. fxg5 {[%clk 0:11:49]} 18... Qb6
{[%clk 0:09:04.6]} 19. h3 {[%clk 0:11:19.7]} 19... Nxe5 {[%clk 0:08:22.3]} 20.
dxe5 {[%clk 0:11:17.9]} 20... Bd7 {[%clk 0:07:38.4]} 21. Bd3 {[%clk 0:10:41.5]}
21... c4+ {[%clk 0:07:41.2]} 22. Be3 {[%clk 0:10:43.3]} 22... cxd3 {[%clk
0:07:42.4]} 23. Qxd3 {[%clk 0:10:42.7]} 23... Qb5 {[%clk 0:07:06.5]} 24. Qd2
{[%clk 0:09:32.6]} 24... Kh7 {[%clk 0:06:33]} 25. Bd4 {[%clk 0:09:23.1]} 25...
Rac8 {[%clk 0:05:21.2]} 26. Rf4 {[%clk 0:09:18.3]} 26... Bf8 {[%clk 0:04:52.1]}
27. g4 {[%clk 0:09:05.6]} 27... fxg4 {[%clk 0:04:38.7]} 28. hxg4 {[%clk
0:09:05.5]} 28... Bc5 {[%clk 0:04:28]} 29. Qc2 {[%clk 0:08:51.4]} 29... Bxd4+
{[%clk 0:04:26.5]} 30. Rxd4 {[%clk 0:08:53.3]} 30... Rg8 {[%clk 0:03:55.8]} 31.
gxh5 {[%clk 0:08:53.7]} 31... Be8 {[%clk 0:03:54.7]} 32. hxg6+ {[%clk
0:08:36.4]} 32... Bxg6 {[%clk 0:03:55.8]} 33. Nxg6 {[%clk 0:08:31.4]} 33... Rxg6
{[%clk 0:04:00.6]} 34. Rh4+ {[%clk 0:08:33.8]} 34... Kg7 {[%clk 0:03:59.5]} 35.
Qg2 {[%clk 0:08:25.3]} 35... Qd3 {[%clk 0:03:44.3]} 36. Rf1 {[%clk 0:08:14.8]}
36... Qe3+ {[%clk 0:03:31]} 37. Qf2 {[%clk 0:08:14.6]} 37... Rxg5+ {[%clk
0:03:00.6]} 38. Kh1 {[%clk 0:08:09.2]} 38... Qxf2 {[%clk 0:02:04.6]} 39. Rxf2
{[%clk 0:08:09.6]} 39... Rf8 {[%clk 0:01:52.1]} 40. Rxf8 {[%clk 0:07:45.9]}
40... Kxf8 {[%clk 0:01:54.9]} 41. Rh7 {[%clk 0:07:33]} 41... Rg7 {[%clk
0:01:58.3]} 42. Rxg7 {[%clk 0:07:35.4]} 42... Kxg7 {[%clk 0:02:02.4]} 43. Kg2
{[%clk 0:07:39.6]} 43... Kg6 {[%clk 0:02:07]} 44. Kf3 {[%clk 0:07:39.6]} 44...
Kf5 {[%clk 0:02:11.2]} 45. Ke3 {[%clk 0:07:42.5]} 45... Kxe5 {[%clk 0:02:15.5]}
46. b3 {[%clk 0:07:46]} 46... b5 {[%clk 0:01:26.7]} 47. b4 {[%clk 0:07:17.8]}
47... Kd6 {[%clk 0:00:51.7]} 48. Kd3 {[%clk 0:07:12.1]} 48... a6 {[%clk
0:00:52.9]} 49. Ke3 {[%clk 0:07:12.2]} 49... Ke5 {[%clk 0:00:54.8]} 50. a3
{[%clk 0:07:03.1]} 50... Kd6 {[%clk 0:00:54.6]} 51. Kd4 {[%clk 0:07:02.2]} 51...
e5+ {[%clk 0:00:55.8]} 52. Ke3 {[%clk 0:07:05.8]} 52... Ke6 {[%clk 0:01:00.2]}
53. Kf3 {[%clk 0:07:07.4]} 53... Kf7 {[%clk 0:01:02.6]} 54. Kg4 {[%clk 0:07:06]}
54... Kg6 {[%clk 0:01:06.8]} 55. Kg3 {[%clk 0:07:04.3]} 55... Kg5 {[%clk
0:01:09.2]} 56. Kf3 {[%clk 0:07:07.4]} 56... Kf5 {[%clk 0:01:13.7]} 57. Ke3
{[%clk 0:07:10.7]} 57... Kg4 {[%clk 0:01:18.3]} 58. Kd3 {[%clk 0:07:10.9]} 58...
Kf4 {[%clk 0:01:22.5]} 59. Ke2 {[%clk 0:06:53.5]} 59... Ke4 {[%clk 0:01:26.5]}
60. Kd2 {[%clk 0:06:57.1]} 60... Kf3 {[%clk 0:01:30.7]} 61. Kd3 {[%clk
0:07:00.1]} 61... e4+ {[%clk 0:01:34.7]} 62. Kd2 {[%clk 0:07:03.2]} 62... Kf2
{[%clk 0:01:38.7]} 0-1

[Event "Live Chess"]
[Site "Chess.com"]
[Date "2023.09.16"]
[Round "-"]
[White "isiskrakatoa"]
[Black "ThiagoFantim"]
[Result "0-1"]
[WhiteElo "562"]
[BlackElo "1661"]
[TimeControl "900+5"]
[EndTime "15:50:09 PDT"]
[Termination "ThiagoFantim venceu por xeque-mate"]

1. e4 {[%clk 0:14:58.9]} 1... c5 {[%clk 0:15:01.3]} 2. d4 {[%clk 0:14:27.4]}
2... cxd4 {[%clk 0:15:01.3]} 3. Qxd4 {[%clk 0:14:30.5]} 3... Nc6 {[%clk
0:15:03.5]} 4. Qd1 {[%clk 0:14:29.3]} 4... g6 {[%clk 0:15:06.2]} 5. Nc3 {[%clk
0:14:31.5]} 5... Bg7 {[%clk 0:15:10]} 6. Be2 {[%clk 0:14:33.9]} 6... e6 {[%clk
0:15:13.9]} 7. Nf3 {[%clk 0:14:36.7]} 7... Nge7 {[%clk 0:15:17.1]} 8. O-O {[%clk
0:14:39.8]} 8... O-O {[%clk 0:15:19.9]} 9. Bg5 {[%clk 0:14:34.8]} 9... Qc7
{[%clk 0:15:20]} 10. Bxe7 {[%clk 0:14:38]} 10... Nxe7 {[%clk 0:15:24.9]} 11. e5
{[%clk 0:14:31.2]} 11... Bxe5 {[%clk 0:15:25.8]} 12. Nxe5 {[%clk 0:14:34.2]}
12... Qxe5 {[%clk 0:15:30.7]} 13. Bf3 {[%clk 0:14:29.9]} 13... d5 {[%clk
0:15:29.6]} 14. Re1 {[%clk 0:14:24.3]} 14... Qd6 {[%clk 0:15:21.7]} 15. Nb5
{[%clk 0:14:26.5]} 15... Qd7 {[%clk 0:15:21.4]} 16. c4 {[%clk 0:14:18.8]} 16...
a6 {[%clk 0:15:19.5]} 17. Nc3 {[%clk 0:14:15.4]} 17... b6 {[%clk 0:15:02.1]} 18.
cxd5 {[%clk 0:14:18.2]} 18... Nxd5 {[%clk 0:15:06.3]} 19. Ne4 {[%clk 0:14:09]}
19... Qd8 {[%clk 0:14:49.6]} 20. Nf6+ {[%clk 0:14:10.4]} 20... Qxf6 {[%clk
0:14:51.9]} 21. Rb1 {[%clk 0:13:45.9]} 21... Bb7 {[%clk 0:14:53.5]} 22. b4
{[%clk 0:13:46.1]} 22... Rfd8 {[%clk 0:14:55]} 23. b5 {[%clk 0:13:46]} 23... a5
{[%clk 0:14:57.8]} 24. a4 {[%clk 0:13:47.7]} 24... Rab8 {[%clk 0:15:01.7]} 25.
Rc1 {[%clk 0:13:46.3]} 25... Nb4 {[%clk 0:14:42.7]} 26. Qe2 {[%clk 0:12:29.2]}
26... Bxf3 {[%clk 0:14:41.2]} 27. gxf3 {[%clk 0:12:26.2]} 27... Nd3 {[%clk
0:14:44]} 28. Qe3 {[%clk 0:12:02]} 28... Nxc1 {[%clk 0:14:44.1]} 29. Qxc1 {[%clk
0:12:05.1]} 29... Qd4 {[%clk 0:14:38.7]} 30. Rd1 {[%clk 0:11:52.4]} 30... Qxd1+
{[%clk 0:14:41.8]} 31. Qxd1 {[%clk 0:11:55.7]} 31... Rxd1+ {[%clk 0:14:46.7]}
32. Kg2 {[%clk 0:11:59.1]} 32... Ra1 {[%clk 0:14:50.9]} 33. f4 {[%clk
0:11:59.1]} 33... Rxa4 {[%clk 0:14:55.8]} 34. Kg3 {[%clk 0:12:00.9]} 34... Rxf4
{[%clk 0:14:59.5]} 35. Kxf4 {[%clk 0:12:03.5]} 35... a4 {[%clk 0:15:04.4]} 36.
Ke3 {[%clk 0:11:58.9]} 36... a3 {[%clk 0:15:08.8]} 37. Kd4 {[%clk 0:11:50.1]}
37... a2 {[%clk 0:15:12.5]} 38. f4 {[%clk 0:11:43.5]} 38... a1=Q+ {[%clk
0:15:16.5]} 39. Ke4 {[%clk 0:11:46]} 39... Qa4+ {[%clk 0:15:20.3]} 40. Ke5
{[%clk 0:11:49.3]} 40... Qxb5+ {[%clk 0:15:24.4]} 41. Ke4 {[%clk 0:11:52.1]}
41... Rc8 {[%clk 0:15:28.7]} 42. f5 {[%clk 0:11:55]} 42... Rc4+ {[%clk
0:15:32.8]} 43. Kd3 {[%clk 0:11:57.7]} 43... Qb3+ {[%clk 0:15:37.7]} 44. Ke2
{[%clk 0:12:00.4]} 44... Rc2+ {[%clk 0:15:42.1]} 45. Kd1 {[%clk 0:12:02.5]}
45... Qb1# {[%clk 0:15:46.3]} 0-1

[Event "Live Chess"]
[Site "Chess.com"]
[Date "2023.09.16"]
[Round "-"]
[White "Ilisunesp"]
[Black "nicolascristiano"]
[Result "0-1"]
[WhiteElo "1554"]
[BlackElo "1546"]
[TimeControl "900+5"]
[EndTime "15:50:18 PDT"]
[Termination "nicolascristiano venceu por desistência"]

1. e4 {[%clk 0:15:02.9]} 1... e6 {[%clk 0:15:03.3]} 2. Nf3 {[%clk 0:15:06.4]}
2... c5 {[%clk 0:15:04.1]} 3. c3 {[%clk 0:15:06]} 3... Nc6 {[%clk 0:15:07.3]} 4.
d4 {[%clk 0:14:54]} 4... cxd4 {[%clk 0:15:09.2]} 5. cxd4 {[%clk 0:14:58.3]} 5...
Nf6 {[%clk 0:14:50.4]} 6. Nc3 {[%clk 0:15:00.4]} 6... Bb4 {[%clk 0:14:51]} 7.
Bd3 {[%clk 0:15:02.5]} 7... Qa5 {[%clk 0:14:21.8]} 8. Bd2 {[%clk 0:14:13.3]}
8... d6 {[%clk 0:12:42]} 9. a3 {[%clk 0:14:03]} 9... Bxc3 {[%clk 0:12:45.3]} 10.
Bxc3 {[%clk 0:14:05.7]} 10... Qb6 {[%clk 0:12:39.2]} 11. O-O {[%clk 0:12:48.3]}
11... O-O {[%clk 0:12:40.8]} 12. d5 {[%clk 0:12:07.3]} 12... Ne5 {[%clk
0:11:31.9]} 13. Nxe5 {[%clk 0:12:05.2]} 13... dxe5 {[%clk 0:11:36.8]} 14. Bxe5
{[%clk 0:12:04]} 14... exd5 {[%clk 0:11:40]} 15. exd5 {[%clk 0:11:55.4]} 15...
Bg4 {[%clk 0:08:52.9]} 16. Qd2 {[%clk 0:11:13.6]} 16... Rad8 {[%clk 0:08:26.3]}
17. d6 {[%clk 0:10:56.4]} 17... Ne8 {[%clk 0:07:01.7]} 18. Qf4 {[%clk
0:05:40.5]} 18... Bh5 {[%clk 0:05:08.2]} 19. Qg3 {[%clk 0:05:02.2]} 19... Bg6
{[%clk 0:05:06]} 20. Bxg6 {[%clk 0:05:03]} 20... hxg6 {[%clk 0:05:04]} 21. Rfd1
{[%clk 0:04:42.2]} 21... Rd7 {[%clk 0:04:13.4]} 22. Qg4 {[%clk 0:03:45.9]} 22...
Qd8 {[%clk 0:04:14]} 23. Rd3 {[%clk 0:02:05.4]} 23... Nf6 {[%clk 0:03:36.5]} 24.
Bxf6 {[%clk 0:02:06.9]} 24... gxf6 {[%clk 0:03:39.1]} 25. Rad1 {[%clk 0:01:47]}
25... Re8 {[%clk 0:03:37.9]} 26. Qf4 {[%clk 0:01:32.2]} 26... Kg7 {[%clk
0:03:35.6]} 27. Rh3 {[%clk 0:01:25.1]} 27... Rh8 {[%clk 0:03:38]} 28. Rxh8
{[%clk 0:01:24.5]} 28... Qxh8 {[%clk 0:03:41.7]} 29. Rd3 {[%clk 0:01:06.2]}
29... g5 {[%clk 0:03:42.8]} 30. Qg4 {[%clk 0:01:08.9]} 30... Qe8 {[%clk
0:03:16.6]} 31. Qd1 {[%clk 0:00:58.6]} 31... Qe5 {[%clk 0:03:10.2]} 32. g3
{[%clk 0:00:51.1]} 32... Qxb2 {[%clk 0:03:10.9]} 33. Qa4 {[%clk 0:00:53.7]}
33... Qc1+ {[%clk 0:03:04.4]} 34. Kg2 {[%clk 0:00:57.7]} 34... Qc6+ {[%clk
0:03:08.4]} 35. Qxc6 {[%clk 0:01:01.1]} 35... bxc6 {[%clk 0:03:13.3]} 36. g4
{[%clk 0:00:57.8]} 36... Kg6 {[%clk 0:03:12.1]} 37. Kf3 {[%clk 0:00:45.2]} 37...
f5 {[%clk 0:03:16.3]} 38. gxf5+ {[%clk 0:00:43.5]} 38... Kxf5 {[%clk 0:03:20.5]}
39. Kg3 {[%clk 0:00:17.1]} 39... Ke5 {[%clk 0:03:23.2]} 40. Kg4 {[%clk
0:00:16.2]} 40... f6 {[%clk 0:03:23.1]} 41. Re3+ {[%clk 0:00:12.2]} 41... Kxd6
{[%clk 0:03:26.3]} 42. Kf5 {[%clk 0:00:16.7]} 42... Rf7 {[%clk 0:03:27]} 43. Kg6
{[%clk 0:00:20.7]} 43... Re7 {[%clk 0:03:21.4]} 44. Rc3 {[%clk 0:00:21.2]} 44...
Re6 {[%clk 0:03:18.9]} 45. Rf3 {[%clk 0:00:22.8]} 45... a6 {[%clk 0:03:18.1]}
46. Kf5 {[%clk 0:00:16.9]} 46... c5 {[%clk 0:03:18.1]} 47. Rd3+ {[%clk 0:00:19]}
47... Ke7 {[%clk 0:03:20.9]} 48. Rd5 {[%clk 0:00:23.1]} 48... c4 {[%clk
0:03:18.1]} 49. Rc5 {[%clk 0:00:26.3]} 49... Re5+ {[%clk 0:03:20.4]} 50. Rxe5+
{[%clk 0:00:24.8]} 50... fxe5 {[%clk 0:03:24.2]} 51. Ke4 {[%clk 0:00:29]} 51...
Kd6 {[%clk 0:03:27]} 0-1

[Event "Live Chess"]
[Site "Chess.com"]
[Date "2023.09.16"]
[Round "-"]
[White "advRafael"]
[Black "mariabeatrizandrade"]
[Result "1-0"]
[WhiteElo "1697"]
[BlackElo "651"]
[TimeControl "900+5"]
[EndTime "15:54:06 PDT"]
[Termination "advRafael venceu por desistência"]

1. c4 {[%clk 0:15:04.2]} 1... e5 {[%clk 0:14:59.9]} 2. Nc3 {[%clk 0:15:08.1]}
2... Nf6 {[%clk 0:15:02.1]} 3. g3 {[%clk 0:15:10.9]} 3... d5 {[%clk 0:14:53.8]}
4. cxd5 {[%clk 0:15:14.2]} 4... Nxd5 {[%clk 0:14:56.5]} 5. Bg2 {[%clk
0:15:17.9]} 5... Be6 {[%clk 0:14:49.4]} 6. Qb3 {[%clk 0:15:16.9]} 6... c6 {[%clk
0:13:55]} 7. Qxb7 {[%clk 0:15:19.3]} 7... Nb6 {[%clk 0:13:21.2]} 8. Bxc6+ {[%clk
0:15:12.9]} 8... Bd7 {[%clk 0:13:19.3]} 9. Bxd7+ {[%clk 0:15:08.3]} 9... N8xd7
{[%clk 0:13:13.8]} 10. Nf3 {[%clk 0:14:59.6]} 10... Bc5 {[%clk 0:12:53.6]} 11.
O-O {[%clk 0:14:48.5]} 11... O-O {[%clk 0:12:53.8]} 12. Ne4 {[%clk 0:14:46.6]}
12... Bd4 {[%clk 0:12:39.1]} 13. Nxd4 {[%clk 0:14:48]} 13... exd4 {[%clk
0:12:30]} 14. d3 {[%clk 0:14:50.1]} 14... Qe7 {[%clk 0:11:38.6]} 15. Bf4 {[%clk
0:14:44.6]} 15... f5 {[%clk 0:11:16.9]} 16. Bd6 {[%clk 0:14:28]} 16... Nc5
{[%clk 0:10:04.8]} 1-0